Cogmind - Beta 14 @@@ ROGUE MODE // 2025.04.24 @ 13:39:41 Player: Glogmind Result: Destroyed by as-10784 with Assembled Blade Performance ------------- Evolutions (0) 0 Regions Visited (4) 800 Robots Destroyed (8) 40 Value Destroyed (154) 154 Prototype IDs (0) 0 Alien Tech Used (0) 0 Bonus (0) 0 TOTAL SCORE: 994 Bonus ------- None Cogmind --------- Core Integrity 0/250 Matter 300/300 Energy 98/100 System Corruption 0% Temperature Cool (0) Movement Core (50) Location -9/Mines Parts ------- > --- POWER (1) -------- (None) > --- PROPULSION (2) --- (None) > --- UTILITY (2) ------ (None) > --- WEAPON (2) ------- (None) > --- INVENTORY (5) ---- Ion Engine Light Treads Improved Treads Improved Treads Rocket Launcher Peak State ------------ > --- POWER ------------ Ion Engine > --- PROPULSION ------- Improved Treads Improved Treads > --- UTILITY ---------- Large Storage Unit Seismic Detector > --- WEAPON ----------- Beam Rifle Beam Rifle > --- INVENTORY -------- Ion Engine Light Treads Light Treads Light Treads Improved Treads Improved Treads Heat Sink Weight Redist. System [Rating: 12] Favorites ----------- Power Ion Engine Engine Ion Engine Propulsion Light Treads Treads Light Treads Flight Unit Flight Unit Utility Seismic Detector Device Seismic Detector Storage Large Storage Unit Weapon Light Assault Rifle Energy Gun Small Laser Ballistic Gun Light Assault Rifle Build | -11 -10 -10 -10 -9 ------- Run | Yrd Mat Min Exi Min Slots Evolved . | . . . . . Power . | . . . . . Propulsion . | . . . . . Utility . | . . . . . Weapon . | . . . . . Parts Attached 17 | 7 5 3 1 1 Power 2 | 1 . . . 1 Engine 2 | 1 . . . 1 Core . | . . . . . Reactor . | . . . . . Propulsion 6 | 2 2 2 . . Treads 4 | 2 2 . . . Leg . | . . . . . Wheel . | . . . . . Hover . | . . . . . Flight 2 | . . 2 . . Utility 4 | 2 1 . 1 . Device 2 | 1 . . 1 . Storage 2 | 1 1 . . . Processor . | . . . . . Hackware . | . . . . . Protection . | . . . . . Artifact . | . . . . . Weapon 5 | 2 2 1 . . Energy Gun 3 | 1 2 . . . Energy Cannon . | . . . . . Ballistic Gun 2 | 1 . 1 . . Ballistic Cannon . | . . . . . Launcher . | . . . . . Special Weapon . | . . . . . Impact Weapon . | . . . . . Slashing Weapon . | . . . . . Piercing Weapon . | . . . . . Special Melee Weapon . | . . . . . Unidentified Prototypes . | . . . . . Parts Lost 2 | . . . . 2 Power . | . . . . . Propulsion 1 | . . . . 1 Utility 1 | . . . . 1 Weapon . | . . . . . Highest Loss Streak 2 | . . . . 2 To Critical Strikes . | . . . . . Average Slot Usage (%) 88 | . 99 75 76 73 Engine 13 | . 14 14 14 11 Treads 16 | . 28 4 . . Flight 10 | . . 21 28 23 Device 16 | . 14 14 19 24 Storage 8 | . 14 2 . . Energy Gun 10 | . 15 7 . . Ballistic Gun 11 | . 12 10 14 11 Peak Build Rating 12 | 7 12 11 10 10 Average Rating 7 | 4 7 6 7 8 On Entrance 6 | . 7 11 5 10 Naked Turns 5 | . . . . 5 Heaviest Build 32 | 13 32 12 8 8 Greatest Support 46 | 40 46 8 8 8 Greatest Overweight (x) 3 | . . 3 . . Average Overweight (x) . | . . . . . Largest Inventory Capacity 15 | 8 15 15 5 5 Average Capacity 9 | 6 12 6 5 5 Most Carried 11 | 1 11 7 5 5 Average Carried 3 | . 2 5 5 5 Final Capacity 15 | 8 15 5 5 5 Final Carried 7 | 1 7 5 5 5 Class Distribution -------------------- 63% | Mutant 36% | Scavenger-Mutant Dominant Class ---------------- Mutant | -10/Materials Scavenger-Mutant | -10/Mines Scavenger-Mutant | -10/Exiles Scavenger-Mutant | -9/Mines Resources | -11 -10 -10 -10 -9 ----------- Run | Yrd Mat Min Exi Min Matter Collected 392 | 231 71 70 . 20 Remotely . | . . . . . Salvage Created 246 | 21 185 40 . . Parts 18 | 3 10 5 . . Haulers Intercepted 1 | . 1 . . . Recyclers Shooed . | . . . . . Parts Field Recycled . | . . . . . Retrieved Matter . | . . . . . Parts Self-Destructed . | . . . . . Prevented . | . . . . . Kills | -11 -10 -10 -10 -9 ------- Run | Yrd Mat Min Exi Min Combat Hostiles Destroyed 6 | . 3 3 . . Guns 6 | . 3 3 . . Classes Destroyed 4 | 1 2 1 . . Tunneler 1 | 1 . . . . Hauler 1 | . 1 . . . Swarmer 3 | . . 3 . . Grunt 3 | . 3 . . . Best Kill Streak 3 | 1 2 3 . . Combat Bots Only 3 | . 2 3 . . Max Kills in Single Turn 1 | 1 1 1 . . Gunslinging . | . . . . . Exploded . | . . . . . Melee . | . . . . . Uniques/NPCs Destroyed . | . . . . . Combat | -11 -10 -10 -10 -9 -------- Run | Yrd Mat Min Exi Min Hostile Shots Fired 60 | . 16 14 . 30 Missed 22 | . 5 3 . 14 Damage Taken 532 | . 166 97 . 269 Core 251 | . 73 17 . 161 Absorbed by Shields . | . . . . . Core Remaining (%) 100 | 100 . . . . Volleys Fired 31 | 3 19 9 . . Largest 2 | 2 2 2 . . Hottest 112 | 60 60 112 . . Shots Fired 57 | 6 38 13 . . Gun 57 | 6 38 13 . . Cannon . | . . . . . Launcher . | . . . . . Special . | . . . . . Kinetic 22 | 3 19 . . . Thermal 35 | 3 19 13 . . Explosive . | . . . . . Electromagnetic . | . . . . . Robot Hit Streak 18 | 3 18 3 . . Robot Miss Streak 3 | 3 2 2 . . Penetration Max . | . . . . . Secondary Targets . | . . . . . Shots Hit Robots 39 | 3 29 7 . . Core Hits 18 | 1 12 3 . 2 Critical Kills . | . . . . . Critical Parts Destroyed . | . . . . . Critical Strikes 1 | . . 1 . . Burn 1 | . . 1 . . Melee Attacks . | . . . . . Impact . | . . . . . Slashing . | . . . . . Piercing . | . . . . . Sneak Attacks . | . . . . . Combat Hostiles . | . . . . . Follow-up Attacks . | . . . . . Damage Inflicted 432 | 41 282 104 . 5 Guns 426 | 41 281 104 . . Cannons . | . . . . . Explosions . | . . . . . Melee . | . . . . . Ramming 6 | . 1 . . 5 Kinetic 110 | 6 104 . . . Thermal 316 | 35 177 104 . . Explosive . | . . . . . Electromagnetic . | . . . . . Impact . | . . . . . Slashing . | . . . . . Piercing . | . . . . . Highest Corruption . | . . . . . Average Corruption . | . . . . . Corruption Purged . | . . . . . Corruption Blocked . | . . . . . Overload Shots . | . . . . . Overflow Damage . | . . . . . Projectiles . | . . . . . Explosions . | . . . . . Melee . | . . . . . Knockbacks . | . . . . . Impact . | . . . . . Kinetic . | . . . . . Secondary . | . . . . . Self-Inflicted Damage 2 | . . . . 2 Shots . | . . . . . Rammed 3 | . 1 . . 2 Targets Rammed 3 | . 1 . . 2 Kicked . | . . . . . Crushed . | . . . . . Highest Temperature 284 | 20 85 284 . . Average Temperature 79 | 15 33 158 . . Received Heat Transfer 69 | . 69 . . . Effects 3 | . . 3 . . Interference 3 | . . 3 . . Siege Activations . | . . . . . Robots Corrupted . | . . . . . Combat Hostiles . | . . . . . Parts Fried . | . . . . . Impact Corruptions . | . . . . . Robots Melted . | . . . . . Combat Hostiles . | . . . . . Parts Melted . | . . . . . Heat Transferred 808 | 75 400 333 . . Parts Sabotaged . | . . . . . Parts Stolen . | . . . . . Parts Stripped . | . . . . . Power Chain Reactions . | . . . . . Alert | -11 -10 -10 -10 -9 ------- Run | Yrd Mat Min Exi Min Peak Influence 143 | 5 143 75 . 15 Initial 5 | . 3 5 . . Average 46 | 1 59 72 . . Maximum Alert Level . | . . . . . Low Security (%) 100 | 100 100 100 . 100 Level 1 . | . . . . . Level 2 . | . . . . . Level 3 . | . . . . . Level 4 . | . . . . . Level 5 . | . . . . . High Security . | . . . . . Max Security . | . . . . . Squads Dispatched 1 | . 1 . . . Investigation . | . . . . . Extermination . | . . . . . Reinforcement 1 | . 1 . . . Assault . | . . . . . Garrison . | . . . . . Intercept . | . . . . . Searches Triggered . | . . . . . Construction Impeded . | . . . . . Haulers Reinforced . | . . . . . Active Scanning Responses . | . . . . . Cargo Convoy Interrupts . | . . . . . Stealth | -11 -10 -10 -10 -9 --------- Run | Yrd Mat Min Exi Min Distress Signals 2 | . 2 . . . Communications Jammed . | . . . . . Distress Signals . | . . . . . Times Spotted 26 | . 8 2 . 16 Peak Tracking Total 10 | . 4 2 . 10 Tactical Retreats 3 | . . . . 3 Traps | -11 -10 -10 -10 -9 ------- Run | Yrd Mat Min Exi Min Traps Triggered 1 | . 1 . . . Indirectly . | . . . . . Trap Hack Attempts . | . . . . . Triggered . | . . . . . Disarmed . | . . . . . Reprogrammed . | . . . . . Reused . | . . . . . Traps Extracted . | . . . . . Installed . | . . . . . Triggered . | . . . . . Machines | -11 -10 -10 -10 -9 ---------- Run | Yrd Mat Min Exi Min Machines Disabled . | . . . . . Max in Single Turn . | . . . . . Machines Repaired . | . . . . . Machines Dismantled . | . . . . . Machines Sabotaged . | . . . . . Overloaded Fab Kills . | . . . . . Hacking | -11 -10 -10 -10 -9 --------- Run | Yrd Mat Min Exi Min Machines Accessed 4 | . 4 . . . Terminals 4 | . 4 . . . Fabricators . | . . . . . Repair Stations . | . . . . . Recycling Units . | . . . . . Scanalyzers . | . . . . . Garrison Access . | . . . . . Total Hacks 13 | . 13 . . . Successful 5 | . 5 . . . Failed 8 | . 8 . . . Catastrophic . | . . . . . Database Lockouts . | . . . . . Manual 12 | . 12 . . . Terminals 13 | . 13 . . . Fabricators . | . . . . . Repair Stations . | . . . . . Recycling Units . | . . . . . Scanalyzers . | . . . . . Garrison Access . | . . . . . Terminal Hacks 2 | . 2 . . . Robot Analysis 1 | . 1 . . . Zone Layout 1 | . 1 . . . Fabricator Hacks . | . . . . . Repair Station Hacks . | . . . . . Recycling Unit Hacks . | . . . . . Scanalyzer . | . . . . . Garrison Access Hacks . | . . . . . Unauthorized Hacks 3 | . 3 . . . Terminals 3 | . 3 . . . Skim 3 | . 3 . . . Fabricators . | . . . . . Repair Stations . | . . . . . Recycling Units . | . . . . . Scanalyzers . | . . . . . Garrison Access . | . . . . . Data Cores Recovered . | . . . . . Used . | . . . . . Hacking Detections 3 | . 3 . . . Full Trace Events . | . . . . . Feedback Events . | . . . . . Feedback Blocked . | . . . . . Robot Schematics Acquired . | . . . . . Robots Built . | . . . . . Authchips . | . . . . . Time . | . . . . . Total Robot Build Rating . | . . . . . Part Schematics Acquired . | . . . . . Parts Built . | . . . . . Authchips . | . . . . . Time . | . . . . . Total Part Build Rating . | . . . . . Parts Repaired . | . . . . . Time . | . . . . . Parts Recycled . | . . . . . Recycled Matter . | . . . . . Retrieved Matter . | . . . . . Retrieved Components . | . . . . . Parts Scanalyzed . | . . . . . Part Schematics Acquired . | . . . . . Parts Damaged . | . . . . . Bothacking | -11 -10 -10 -10 -9 ------------ Run | Yrd Mat Min Exi Min Used RIF Installer . | . . . . . Robots Hacked . | . . . . . Non-combat . | . . . . . Combat . | . . . . . Robot Hacks Applied . | . . . . . Relay Couplers Released . | . . . . . Fabnet Peak Effective % . | . . . . . Robots Rewired . | . . . . . Allies Hacked . | . . . . . Hacks Repelled . | . . . . . Allies | -11 -10 -10 -10 -9 -------- Run | Yrd Mat Min Exi Min Total Allies . | . . . . . Largest Group . | . . . . . Highest-Rated Group . | . . . . . Highest-Rated Ally . | . . . . . Total Orders . | . . . . . Ally Attacks . | . . . . . Total Damage . | . . . . . Kills . | . . . . . Allies Corrupted . | . . . . . Allies Melted . | . . . . . Intel | -11 -10 -10 -10 -9 ------- Run | Yrd Mat Min Exi Min Robot Analysis Total 1 | . 1 . . . Derelict Logs Recovered 2 | . . 2 . . Drone Launches . | . . . . . Drone Recoveries . | . . . . . Exploration | -11 -10 -10 -10 -9 ------------- Run | Yrd Mat Min Exi Min Turns Passed 870 | 97 421 176 52 124 Spaces Moved 1028 | 53 189 340 137 309 Core 34 | 6 . 3 . 25 Treads 236 | 47 189 . . . Legs . | . . . . . Wheels . | . . . . . Hover . | . . . . . Flight 758 | . . 337 137 284 Fastest Speed 37 | 50 160 37 37 37 Average Speed 67 | 147 160 41 37 38 Slowest Speed 200 | 160 160 200 37 50 Overloaded Moves . | . . . . . Propulsion Burnouts . | . . . . . Robots Hopped 8 | . . 2 . 6 Cave-ins Triggered . | . . . . . Exploration Rate (%) 46 | 4 31 72 52 74 Regions Visited 4 Branch Regions 3 Pre-discovered Areas 1 | . . 1 . . Known Exits Taken . | . . . . . Unknown Exits Taken 4 | 1 1 1 1 . Scrap Searched 2 | . . 1 . 1 Spaces Dug . | . . . . . Terrain Destroyed . | . . . . . Melee . | . . . . . Projectile . | . . . . . AOE . | . . . . . Terrain Rammed . | . . . . . Walls Destroyed . | . . . . . Machines Disabled . | . . . . . Actions | -11 -10 -10 -10 -9 --------- Run | Yrd Mat Min Exi Min Total 1145 | 63 274 359 137 312 Wait 50 | . 46 3 . 1 Move 1008 | 52 188 335 136 297 Hop 8 | . . 2 . 6 Pick Up 10 | 1 8 1 . . Fast Attach 13 | 7 2 3 1 . Attach . | . . . . . Detach . | . . . . . Swap 4 | . 3 . . 1 Drop 18 | . 7 6 . 5 Fire 31 | 3 19 9 . . Melee . | . . . . . Ram 2 | . . . . 2 Kick . | . . . . . Crush 1 | . 1 . . . Escape Stasis . | . . . . . Rewire . | . . . . . Trap . | . . . . . Miscellaneous . | . . . . . Route ------- -11/Scrapyard -10/Materials -10/Mines (discovered 2 exits: [*Mat] / [*Exi]) -10/Exiles -9/Mines History --------- Turn | Location | Event 6 | -11/Scrapyard | Discovered new exit (range 16) 98 | -11/Scrapyard | Entered Materials 313 | -10/Materials | Build established: Mutant 421 | -10/Materials | Discovered new exit (range 15) 519 | -10/Materials | Entered Mines 544 | -10/Mines | Met a Derelict bent on vengeance 592 | -10/Mines | Received a Rocket Launcher from a helpful Derelict 625 | -10/Mines | Discovered new exit (range 12) 657 | -10/Mines | Learned location of Storage (-9) 693 | -10/Mines | Deemed a non-threat by the Exiles lab entrance 693 | -10/Mines | Discovered new exit (range 5) 695 | -10/Mines | Entered Exiles 695 | -10/Exiles | Found Exiles lab destroyed 744 | -10/Exiles | Discovered new exit (range 11) 747 | -10/Exiles | Entered Mines 748 | -9/Mines | Assembled infested the area 753 | -9/Mines | Assisted by a Guerilla fighting off Assembled 841 | -9/Mines | Build established: Scavenger-Mutant 861 | -9/Mines | Core integrity fell below 50% 867 | -9/Mines | Core integrity fell below 20% 871 | -9/Mines | Destroyed by as-10784 with Assembled Blade Last Messages --------------- HV Slug penetrates YI-UF0. YI-UF0 knocked back. K-01 Serf cleans the Plasma Injector. Searching scrap... Found Visual Processing Unit. Found Ion Engine. Found Med. Laser. Found Structural Scanner. Found 58 Matter. Dropped Ion Engine. K-01 Serf collects debris. Acquired 20 matter. Flight Unit destroyed. Knocked back. Dropped Lgt. Assault Rifle. Dropped Mak. Cloaking Device. Dropped Flight Unit. Dropped Ion Engine. Slammed into as-84647. Seismic Detector destroyed. Map ----- +----------------------------------------------------+ | ?????????????????????# ??# #??? | | ???????????????????### ??# #??? | | ???????????????????? #### #??? | | ###############?????#" # ##??? | | # #?????# % ## ##??? | | # """ """ """ #?????# % # #??? | | # """ """ """ #?????# ## #??? | | # """ """ """ #?????# #??? | | # ####??# # #??? | | # """ """ """ #??# #??? | | # """ """ """ ## #???# #??? | | # """ """ """ ## #???# * #??? | | # ## #?### % ##??? | | ################ ### ##???? | | ???????????????# ##????? | | ???????????????##### ## ##?????? | | ???????????????????# #???# # ##??????? | | #???????????????#### #???# #?####????? | | ##??????????????# #???# ### ##???? | | ####???????##### ####???# ## ##??? | | ######### #??##### ## #??? | | # #?## ## #??? | | ###### #####?# ##### #??? | | # #?????# ### #??? | | ##### ########?????# a #??? | | ????####????????????## @a #??? | | ?????????????????????# ## ##??? | | ????????????##???????# ### ##???? | | ????????????# ####???# #?#### ##????? | | ????????????# ##??# #?##?####?????? | | ????????????# #### # ##?????????? | | ?? ????????# ####??????? | | ??? #???????## #??????? | | ??? ##??????# #?????? | | ???# ##?????#" ## #????? | | ???? #?????# ### ##?? #????? | | ????# #?????# ##??###???? ##????? | | ????# ####### #???????????##?????? | | ???## #??????????????????? | | ??## #??????????????????? | | ?## ###### ##??????????????????? | | ?# ##???###%#???????????????????? | | ## #######%#???????????????????? | | |*#???????????????????? | | ### ###%###?????????????????? | | ### ### ###!= ##????????????????? | | ??## """ ## ## #????????????????? | | #?## """ ## ## = #????????????????? | | ## """ ### ![* ##????????????????? | | ##?####!* ##?????????????????? | +----------------------------------------------------+ Best States ------------- Heat Dissipation 25 Energy Generation 10 Energy Capacity 250 Matter Stores 300 Matter Capacity 300 Sight Range 16 Terrain Scan Density 10 Cloak Strength 3 Evasion (%) 62 Recoil Reduction 2 Item Schematics ----------------- None Robot Schematics ------------------ None Fabricated ------------ Nothing Alien Tech Used ----------------- None Achievements -------------- None Challenges ------------ None Game ------ Seed NodeJunkWeb Manual? 0 Play Time 00:11:36 Cumulative 55.6 hours Start 2025.04.24 @ 13:28:30 End 2025.04.24 @ 13:39:41 Sessions 1 Manual Loads 0 Difficulty Rogue Special Mode None Game No. 95 Rogue 95 Adventurer 0 Explorer 0 Win Type - Total 1 Types 1/0/0/0/0/0/0/0/0 Lore% 16 Gallery% 41 Achievement% 37 Wizard Run 0 Options --------- Layout 1 ASCII 0 Keyboard 0 Movement Mouse Keybinds 0 Fullscreen 1 Font 24/Smallcaps Map View 50x40 Zoom Use 0% Tactical HUD 0 Map Filters NONE Filters NONE Steam 0 RUN: ae5e11e0-16e4-4e07-9c76-3732fedc7d0f